[Event "Champions Chess Tour Finals 2023"]
[Site "Chess.com"]
[Date "2023.12.13"]
[Round "1"]
[White "Caruana, Fabiano"]
[Black "Carlsen, Magnus"]
[Result "0-1"]
[WhiteElo "2762"]
[BlackElo "2818"]
[ECO "B82"]
[EventDate "2023.??.??"]
[Annotator "rafael"]
[PlyCount "78"]
[Beauty "7697252486737"]
[EventType "team-tourn"]
[TimeControl "900+3"]

1.e4 c5 2.Nf3 e6 3.d4 cxd4 4.Nxd4 a6 {This variation is a curious case of a defense that is known equally by two names: some call it the Kan, some call it the Paulsen. It's a daring choice for someone who just needs a draw, but Carlsen knows what he's doing. He doesn't play it too often, although he has tried it a few times.} 5.Nc3 {This, and 5.Bd3, have always been the main lines, but 5.c4 is also very popular.} ( 5.Bd3 ) ( 5.c4 ) 5...Qc7 6.Bd3 Nf6 7.Qe2 d6 8.f4 Nbd7 9.g4 $1 {[%c_effect g4;square;g4;type;GreatFind;persistent;true] A typical Sicilian fight is on the board. None of the kings have their safety guaranteed.} 9...Nc5 10.g5 Nfd7 11.a4 {A theoretical novelty. White's idea is to prevent b7-b5, but this move is very compromising: when the queenside advances, White's king has no refuge.} ( 11.Bd2 {is a cunning move, with the idea of replying to} 11...b5 {with} 12.b4 $1 {[%c_effect b4;square;b4;type;GreatFind;persistent;true] when White has the advantage.} ) ( 11.h4 b5 12.a3 {is also possible.} ) 11...Be7 12.h4 b6 {Black prepares to complete development in a more restricted way.} 13.Be3 Bb7 14.h5 Rc8 ( 14...O-O {is the computer's suggestion, proving that the machine fears nothing.} ) 15.Rg1 ( 15.O-O-O Nxd3+ 16.cxd3 b5 $1 {[%c_effect b5;square;b5;type;GreatFind;persistent;true] with counterplay for Black in a position that remains very complicated.} ) ( 15.f5 Ne5 {with chances for both sides.} ) 15...g6 $1 {[%c_effect g6;square;g6;type;GreatFind;persistent;true]} 16.Rh1 e5 17.hxg6 fxg6 {A critical position. Both sides have played very well up to this point.} ( 17...exd4 $4 {[%c_effect d4;square;d4;type;Blunder;persistent;true]} 18.Bxd4 ) 18.Nf3 $2 {[%c_effect f3;square;f3;type;Mistake;persistent;true] In the Sicilian Defense, usually the first one who blinks loses the game.} ( 18.f5 $1 {[%c_effect f5;square;f5;type;GreatFind;persistent;true] is the right way go, sacrificing a piece. After} 18...exd4 19.Bxd4 Ne5 20.fxg6 {anything can happen, but it's certainly more fun to play White.} ) 18...exf4 19.Bxf4 Nxd3+ 20.cxd3 Ne5 ( 20...O-O $1 {[%c_effect g8;square;g8;type;GreatFind;persistent;true] is more accurate. White's attack is not so strong when the rook goes to f7.} ) 21.Be3 ( 21.Bxe5 $1 {[%c_effect e5;square;e5;type;GreatFind;persistent;true]} 21...dxe5 22.Qh2 {Now Black can no longer castle and the position is dynamically balanced.} ) 21...O-O $1 {[%c_effect g8;square;g8;type;GreatFind;persistent;true] Not afraid of any ghosts $1} 22.Nd4 Qd7 ( 22...Rf7 {Placing the rook on f7 is a good measure to avoid any surprises.} ) 23.O-O-O ( 23.Kd2 $1 {[%c_effect d2;square;d2;type;GreatFind;persistent;true] is a better chance.} ) 23...b5 $1 {[%c_effect b5;square;b5;type;GreatFind;persistent;true]} ( 23...Qxa4 24.Kb1 {is not so clear.} ) 24.axb5 axb5 25.Kb1 b4 26.Na2 {A sad move.} ( 26.Nd5 Bxd5 27.exd5 Qa4 {with a winning position for Black.} ) 26...d5 ( 26...Rf7 $5 {[%c_effect f7;square;f7;type;Interesting;persistent;true] is very solid.} 27.Nxb4 d5 28.Nxd5 Bxd5 29.exd5 Qxd5 {followed by Ra8, with an easy win.} ) 27.Rxh7 $5 {[%c_effect h7;square;h7;type;Interesting;persistent;true] A desperate attempt.} 27...Kxh7 28.Qh2+ Kg8 29.Rh1 {The attack looks dangerous, but Carlsen defends with his characteristic precision.} 29...Bd6 $1 {[%c_effect d6;square;d6;type;GreatFind;persistent;true]} 30.Bf4 ( 30.Qh8+ Kf7 31.Rh7+ Ke8 32.Rxd7 Rxh8 33.Rxd6 Rh1+ 34.Nc1 Nxd3 {White loses more material.} ) 30...Qg7 {Technically a mistake, but let's not forget that Carlsen needed only a draw. For this reason, I won't put a question mark on this move, as it gets the job done.} ( 30...dxe4 {leads to a win:} 31.Bxe5 ( 31.Qh8+ Kf7 32.Rh7+ Ke8 33.Rxd7 Rxh8 {with a win for Black.} ) 31...exd3 $1 {[%c_effect d3;square;d3;type;GreatFind;persistent;true]} ( 31...Bxe5 {leads only to a draw, a good result for Carlsen anyway.} 32.Qxe5 Qg7 33.Qxg7+ Kxg7 34.Ne6+ Kg8 35.Nxf8 exd3 36.Rd1 Kxf8 37.Nxb4 ) 32.Qh8+ {The showy check continues to be supremely useless for White.} ( 32.Bxd6 Bxh1 $1 {[%c_effect h1;square;h1;type;GreatFind;persistent;true]} ) 32...Kf7 33.Rh7+ Ke8 34.Rxd7 Rxh8 35.Rxd6 Rh1+ 36.Nc1 Be4 {White can resign.} ) 31.Ne6 Nf3 $1 {[%c_effect f3;square;f3;type;GreatFind;persistent;true] This is the idea.} 32.Nxg7 ( 32.Qh3 {leads to a draw by perpetual check. Since this amounts to losing the match anyway, I won't attach a question mark to Caruana's choice.} 32...Bxf4 33.Nxg7 Nd2+ 34.Ka1 Nb3+ ) 32...Nxh2 33.Bxd6 Rf1+ 34.Rxf1 Nxf1 35.Bxb4 Kxg7 {Black is a rook up.} 36.Bc3+ Kf7 37.Nb4 dxe4 38.dxe4 Bxe4+ 39.Ka2 Ne3 0-1

[Event "Champions Chess Tour Finals 2023"]
[Site "Chess.com"]
[Date "2023.12.14"]
[Round "1"]
[White "So, Wesley"]
[Black "Abdusattorov, Nodirbek"]
[Result "0-1"]
[WhiteElo "2737"]
[BlackElo "2727"]
[ECO "C45"]
[EventDate "2023.??.??"]
[Annotator "rafael"]
[PlyCount "130"]
[Beauty "6121444087383"]
[EventType "team-tourn"]
[TimeControl "900+3"]

1.e4 e5 2.Nf3 Nc6 3.d4 exd4 4.Nxd4 Bb4+ {This move also has considerable theory, but is played much less often than the two main lines with 4...Bc5 and 4...Nf6.} 5.c3 Bc5 6.Nf5 $2 {[%c_effect f5;square;f5;type;Mistake;persistent;true]} ( 6.Be3 $1 {[%c_effect e3;square;e3;type;GreatFind;persistent;true] is considered the best option by opening theory and has, in fact, being played in a game by those same players.} 6...Bb6 7.Nf5 Bxe3 8.Nxe3 Nf6 9.f3 d6 10.c4 O-O 11.Nc3 {with a slight advantage for White: So-Abdusattorov, Aimchess Rapid 2023.} ) 6...d6 $5 {[%c_effect d6;square;d6;type;Interesting;persistent;true] Black already has several interesting options.} ( 6...g6 7.Be3 $1 {[%c_effect e3;square;e3;type;GreatFind;persistent;true] with chances of an advantage for White.} ) ( 6...d5 {is very interesting:} 7.Nxg7+ Kf8 8.Qxd5 ( 8.Nh5 Qh4 {gives Black a dangerous initiative.} ) 8...Qxd5 9.exd5 Kxg7 10.dxc6 Nf6 {with excellent compensation for the two pawns.} ) ( 6...Qf6 {is also playable.} ) 7.Nxg7+ Kf8 8.Nh5 Qh4 9.Ng3 Nf6 {Black sacrificed a pawn and has the king in the center but achieved a big advantage in development.} 10.Be2 Ne5 ( 10...Nxe4 {is possible, but White manages to castle and has easier play after} 11.Nxe4 Qxe4 12.O-O ) ( 10...Ng4 11.Bxg4 Bxg4 12.Qd2 h5 {leads to a complex position.} ) 11.f3 Rg8 ( 11...Nh5 {looks very tempting, but White escapes with some forced moves. The feeling is that this whole opening variation is very dangerous for White.} 12.Qd2 $1 {[%c_effect d2;square;d2;type;GreatFind;persistent;true]} 12...h6 $1 {[%c_effect h6;square;h6;type;GreatFind;persistent;true]} ( 12...Nxg3 13.Qh6+ $2 {[%c_effect h6;square;h6;type;Mistake;persistent;true]} ) 13.Kd1 $1 {[%c_effect d1;square;d1;type;GreatFind;persistent;true]} 13...Nxg3 14.Qe1 $1 {[%c_effect e1;square;e1;type;GreatFind;persistent;true]} 14...Nf5 15.exf5 Qxe1+ 16.Rxe1 Bxf5 17.Nd2 {Black is better, but White at least is not going to be mated.} ) 12.Kd2 $1 {[%c_effect d2;square;d2;type;GreatFind;persistent;true] The only move $1 It seems almost impossible to play like this, but it was chosen using the method of elimination. No other move is able to avoid ...Rxg3.} 12...Be6 {Believe it or not, this is the first new move of the game.} ( 12...d5 {is also good for Black and was played in Luetke-Berndt, Nordrheinwestfalen 2018.} ) 13.Kc2 Rd8 $6 {[%c_effect d8;square;d8;type;Inaccuracy;persistent;true] A natural move, but now White, surprisingly, is able to fight for an advantage.} ( 13...Nxe4 {This is the best option, according to the machine, evaluating the position as equal. This is just too much for my brain to understand, but I'll show some variations.} 14.fxe4 ( 14.Nxe4 Rxg2 15.Nbd2 Bf5 {Threatening ...d5.} 16.Kb3 Be6+ 17.Kc2 {A random move repetition is the safe heaven of the commentator.} ) 14...Rxg3 15.Bh6+ $1 {[%c_effect h6;square;h6;type;GreatFind;persistent;true]} ( 15.hxg3 Qxe4+ {leads to a winning attack.} ) 15...Qxh6 16.hxg3 Qg6 17.Nd2 d5 {with good compensation for the exchange.} ) 14.b4 ( 14.Qd2 {This seems to me to be the most natural move, preparing Qh6+.} 14...h5 $1 {[%c_effect h5;square;h5;type;GreatFind;persistent;true] with unclear play.} ) ( 14.Nd2 $1 {[%c_effect d2;square;d2;type;GreatFind;persistent;true] is the best:} 14...d5 15.Nb3 Be7 16.Nd4 $1 {[%c_effect d4;square;d4;type;GreatFind;persistent;true]} 16...dxe4 17.Nxe6+ fxe6 18.Qf1 exf3 19.gxf3 {and White can fight for the advantage.} ) 14...Bb6 15.Bb2 $2 {[%c_effect b2;square;b2;type;Mistake;persistent;true]} ( 15.Qd2 {is better.} ) 15...d5 $1 {[%c_effect d5;square;d5;type;GreatFind;persistent;true] Black has a dream position. White's king is very insecure.} 16.Na3 c5 {There are many good alternatives.} ( 16...c6 {Preparing ...dxe4.} ) ( 16...Nxe4 $5 {[%c_effect e4;square;e4;type;Interesting;persistent;true] The computer always comes up with a move that is good and impossible to find.} 17.fxe4 d4 $1 {[%c_effect d4;square;d4;type;GreatFind;persistent;true]} 18.cxd4 Rxg3 $1 {[%c_effect g3;square;g3;type;GreatFind;persistent;true]} 19.hxg3 Qxe4+ {with a strong attack.} ) 17.bxc5 dxe4 18.cxb6 Rxd1 19.Raxd1 exf3 $2 {[%c_effect f3;square;f3;type;Mistake;persistent;true] Based on a miscalculation.} ( 19...axb6 $1 {[%c_effect b6;square;b6;type;GreatFind;persistent;true] leads to an easy win for Black.} ) 20.Rd4 $1 {[%c_effect d4;square;d4;type;GreatFind;persistent;true] This move certainly was missed by Abdusattorov. It's important to cut Black's queen from the fourth rank so that ...Qa4+ is not possible.} ( 20.bxa7 $2 {[%c_effect a7;square;a7;type;Mistake;persistent;true]} 20...Qa4+ $1 {[%c_effect a4;square;a4;type;GreatFind;persistent;true]} ) 20...Qg5 $6 {[%c_effect g5;square;g5;type;Inaccuracy;persistent;true] The queen is badly placed on g5.} ( 20...Qh6 {is better:} 21.bxa7 Kg7 22.gxf3 Ra8 {with chances for both sides.} ) 21.bxa7 Qg6+ $2 {[%c_effect g6;square;g6;type;Mistake;persistent;true] This loses.} ( 21...Kg7 {is a better option, although White is better after} 22.gxf3 ) 22.Bd3 $2 {[%c_effect d3;square;d3;type;Mistake;persistent;true]} ( 22.Kc1 $1 {[%c_effect c1;square;c1;type;GreatFind;persistent;true] is winning for White after} 22...Kg7 23.gxf3 {There are too many assets in White's position: the a7-pawn, the g-file, the strong bishop on b2.} ) 22...Nxd3 $1 {[%c_effect d3;square;d3;type;GreatFind;persistent;true]} 23.a8=Q+ Kg7 24.Qa5 $6 {[%c_effect a5;square;a5;type;Inaccuracy;persistent;true]} ( 24.Qxg8+ $1 {[%c_effect g8;square;g8;type;GreatFind;persistent;true] is better:} 24...Kxg8 25.Rd8+ $1 {[%c_effect d8;square;d8;type;GreatFind;persistent;true] an important intermediate move.} ( 25.Rxd3 $2 {[%c_effect d3;square;d3;type;Mistake;persistent;true]} 25...Ng4 {is winning for Black.} ) 25...Ne8 ( 25...Kg7 26.Rxd3 fxg2 ( 26...Ng4 $2 {[%c_effect g4;square;g4;type;Mistake;persistent;true] no longer works with the king on g7:} 27.c4+ Kf8 28.Bd4 {everything is controlled, and White wins.} ) 27.Rg1 Kf8 28.Rxg2 h5 {with an unclear endgame or middlegame, I don't know how to call it.} ) 26.Rxd3 {with the knight on e8 White has a fine position.} ) 24...Nf2+ 25.Kc1 Nxh1 26.gxf3 Nxg3 27.hxg3 Qxg3 28.c4 {The dust has settled, and Black has the advantage thanks mainly to the h-pawn. That said, anything can happen.} 28...Kg6 ( 28...h5 {is a natural move, when White must play} 29.Rd1 $1 {[%c_effect d1;square;d1;type;GreatFind;persistent;true] to fight for survival.} ) 29.Rd1 $2 {[%c_effect d1;square;d1;type;Mistake;persistent;true] Now this is wrong, as the f3-pawn can be captured.} ( 29.Qc3 $1 {[%c_effect c3;square;c3;type;GreatFind;persistent;true] is better.} ) 29...Rc8 $2 {[%c_effect c8;square;c8;type;Mistake;persistent;true]} ( 29...Qxf3 $1 {[%c_effect f3;square;f3;type;GreatFind;persistent;true] Black should take the pawn without fear.} ) 30.Kb1 $2 {[%c_effect b1;square;b1;type;Mistake;persistent;true]} ( 30.Qc3 $1 {[%c_effect c3;square;c3;type;GreatFind;persistent;true] is again necessary.} ) 30...Qxf3 $1 {[%c_effect f3;square;f3;type;GreatFind;persistent;true]} 31.Rg1+ Ng4 32.Ka1 h5 ( 32...Qe3 $1 {[%c_effect e3;square;e3;type;GreatFind;persistent;true] is more accurate, not allowing white's next move.} ) 33.Qe5 $1 {[%c_effect e5;square;e5;type;GreatFind;persistent;true] Creating dangerous threats.} 33...Rg8 $1 {[%c_effect g8;square;g8;type;GreatFind;persistent;true] Black protects the g7-square.} 34.Nb5 Qf2 35.Qe4+ Bf5 36.Qh1 Re8 $6 {[%c_effect e8;square;e8;type;Inaccuracy;persistent;true]} ( 36...Rd8 $1 {[%c_effect d8;square;d8;type;GreatFind;persistent;true] is stronger.} ) 37.Nd6 $1 {[%c_effect d6;square;d6;type;GreatFind;persistent;true]} 37...Re2 38.Nxf5 Rxb2 39.Rg2 $5 {[%c_effect g2;square;g2;type;Interesting;persistent;true] A beautiful defensive move.} ( 39.Nh4+ {is also possible:} 39...Kg5 40.Rg2 $1 {[%c_effect g2;square;g2;type;GreatFind;persistent;true]} 40...Rxa2+ 41.Kb1 Qxh4 {The only way to fight for the win.} 42.Qc1+ Kg6 43.Kxa2 {The game keeps going, but objectively the position is equal.} ) 39...Rxa2+ ( 39...Qxg2 $4 {[%c_effect g2;square;g2;type;Blunder;persistent;true]} 40.Nh4+ ) 40.Kb1 Rb2+ 41.Ka1 Ra2+ 42.Kb1 Qxf5+ {Black has to fight with his queen and knight.} 43.Kxa2 Qe4 44.Kb3 ( 44.Qb1 {According to the computer this leads to a draw, but I must admit it looks pretty scary for White.} ) 44...f5 45.Rg1 Qe3+ 46.Kb4 h4 {It's not easy to defend White's position.} 47.Re1 $2 {[%c_effect e1;square;e1;type;Mistake;persistent;true] An unfortunate square for the rook.} ( 47.Rb1 ) ( 47.Rd1 ) 47...Qd2+ 48.Kb5 Kg5 ( 48...h3 $1 {[%c_effect h3;square;h3;type;GreatFind;persistent;true] is better. It becomes clear why the rook is poorly placed on e1, as now the queen cannot capture on h3.} ) 49.Rb1 Qd7+ 50.Kb6 Qe6+ 51.Kb5 {The players had seconds on the clock, so it feels unfair to criticize their decisions in this difficult endgame.} 51...Qe4 52.Qxe4 fxe4 53.Kb6 Ne5 54.Kc5 $2 {[%c_effect c5;square;c5;type;Mistake;persistent;true]} ( 54.c5 $1 {[%c_effect c5;square;c5;type;GreatFind;persistent;true] leads to a draw.} 54...Nd3 55.Kxb7 ( 55.Kb5 {is even simpler, but the main variation is more didactic.} ) 55...Nxc5+ 56.Kc6 Nd3 57.Kd5 Nf2 58.Kd4 Kf4 59.Re1 $1 {[%c_effect e1;square;e1;type;GreatFind;persistent;true]} 59...h3 60.Re2 $1 {[%c_effect e2;square;e2;type;GreatFind;persistent;true] The only move.} 60...Kf3 61.Re3+ Kg2 62.Re1 h2 63.Ke3 {White has a fortress.} ) 54...h3 $2 {[%c_effect h3;square;h3;type;Mistake;persistent;true]} ( 54...Kf4 $1 {[%c_effect f4;square;f4;type;GreatFind;persistent;true] is winning, similar to what we will see later in the game.} ) 55.Kd4 $2 {[%c_effect d4;square;d4;type;Mistake;persistent;true] This natural square is a bad one.} ( 55.Kd5 $1 {[%c_effect d5;square;d5;type;GreatFind;persistent;true] is a draw:} 55...Kf4 56.Rh1 $1 {[%c_effect h1;square;h1;type;GreatFind;persistent;true] The difference is that Black no longer has the idea with ...Nf3+.} 56...e3 57.Rxh3 e2 58.Rh1 Nd3 59.Kd6 ) 55...Kf4 {Black is winning again.} 56.Rxb7 e3 57.Rb1 e2 58.c5 h2 59.Kc3 Ke3 60.Rh1 Nc6 ( 60...Nf3 {is winning. It took a few moves, but Abdusattorov eventually found it.} 61.c6 Ng1 ) 61.Kc2 Ne7 62.Kc3 Nc6 63.Kc2 Nd4+ 64.Kc3 Nf3 $1 {[%c_effect f3;square;f3;type;GreatFind;persistent;true]} 65.c6 Ng1 $1 {[%c_effect g1;square;g1;type;GreatFind;persistent;true] The queen is promoted with check.} 0-1